Cogmind - Beta 10.2 @@@ ROGUE MODE // 2021.05.27 @ 11:05:01 Player: K.Ioz Result: Self-destructed Performance ------------- Evolutions (1) 500 Regions Visited (2) 400 Robots Destroyed (4) 20 Value Destroyed (160) 160 Prototype IDs (0) 0 Alien Tech Used (0) 0 Bonus (200) 200 TOTAL SCORE: 1280 Bonus ------- Pacifist 200 Cogmind --------- Core Integrity 388/400 Matter 273/300 Energy 250/250 System Corruption 0% Temperature Cool (0) Movement Walking (120) Location -9/Materials Parts ------- > --- POWER (1) -------- Ion Engine > --- PROPULSION (2) --- Aluminum Leg Aluminum Leg > --- UTILITY (4) ------ Improved Heat Sink Small Storage Unit Sensor Array > --- WEAPON (2) ------- Medium Laser Assault Rifle > --- INVENTORY (6) ---- Ion Engine Wheel Compact Wheel Small Laser Assault Cannon Grenade Launcher Peak State ------------ > --- POWER ------------ Ion Engine > --- PROPULSION ------- Aluminum Leg Aluminum Leg > --- UTILITY ---------- Improved Heat Sink Small Storage Unit Sensor Array > --- WEAPON ----------- Medium Laser Assault Rifle > --- INVENTORY -------- Ion Engine Wheel Compact Wheel Small Laser Beam Rifle Grenade Launcher [Rating: 10] Favorites ----------- Power Ion Engine Engine Ion Engine Propulsion Aluminum Leg Leg Aluminum Leg Utility Small Storage Unit Device Sensor Array Storage Small Storage Unit Weapon Assault Rifle Energy Gun Medium Laser Ballistic Gun Assault Rifle Build | -11 -10 -9 ------- Run | Scr Mat Mat Slots Evolved 2 | . . 2 Power . | . . . Propulsion . | . . . Utility 2 | . . 2 Weapon . | . . . Parts Attached 9 | 7 1 1 Power 1 | 1 . . Engine 1 | 1 . . Core . | . . . Reactor . | . . . Propulsion 2 | 2 . . Treads . | . . . Leg 2 | 2 . . Wheel . | . . . Hover . | . . . Flight . | . . . Utility 3 | 1 1 1 Device 2 | . 1 1 Storage 1 | 1 . . Processor . | . . . Hackware . | . . . Protection . | . . . Artifact . | . . . Weapon 3 | 3 . . Energy Gun 2 | 2 . . Energy Cannon . | . . . Ballistic Gun 1 | 1 . . Ballistic Cannon . | . . . Launcher . | . . . Special Weapon . | . . . Impact Weapon . | . . . Slashing Weapon . | . . . Piercing Weapon . | . . . Special Melee Weapon . | . . . Unidentified Prototypes . | . . . Parts Lost . | . . . Power . | . . . Propulsion . | . . . Utility . | . . . Weapon . | . . . Highest Loss Streak . | . . . Average Slot Usage (%) 88 | . 90 87 Engine 11 | . 14 11 Leg 23 | . 28 22 Device 16 | . 5 21 Storage 11 | . 14 11 Energy Gun 11 | . 14 11 Ballistic Gun 11 | . 14 11 Naked Turns . | . . . Heaviest Build 15 | 13 14 15 Greatest Support 20 | 20 20 20 Greatest Overweight (x) . | . . . Average Overweight (x) . | . . . Largest Inventory Capacity 6 | 6 6 6 Average Capacity 5 | 5 6 6 Most Carried 6 | 5 6 6 Average Carried 5 | 2 5 5 Final Capacity 6 | 6 6 6 Final Carried 6 | 4 6 6 Class Distribution -------------------- 100% | Mutant Dominant Class ---------------- Mutant | -10/Materials Mutant | -9/Materials Resources | -11 -10 -9 ----------- Run | Scr Mat Mat Matter Collected 314 | 222 . 92 Remotely . | . . . Salvage Created 178 | . . 178 Parts 14 | . . 14 Haulers Intercepted . | . . . Recyclers Shooed . | . . . Parts Field Recycled . | . . . Retrieved Matter . | . . . Parts Self-Destructed . | . . . Prevented . | . . . Kills | -11 -10 -9 ------- Run | Scr Mat Mat Combat Hostiles Destroyed 4 | . . 4 Guns 4 | . . 4 Classes Destroyed 3 | . . 3 Grunt 2 | . . 2 Duelist 1 | . . 1 Sentry 1 | . . 1 Best Kill Streak 3 | . . 3 Combat Bots Only 3 | . . 3 Max Kills in Single Turn 1 | . . 1 Gunslinging . | . . . Exploded . | . . . Melee . | . . . Uniques/NPCs Destroyed . | . . . Combat | -11 -10 -9 -------- Run | Scr Mat Mat Damage Taken 178 | . . 178 Core 12 | . . 12 Absorbed by Shields . | . . . Core Remaining (%) 100 | 100 100 . Volleys Fired 17 | . . 17 Largest 2 | . . 2 Hottest 70 | . . 70 Shots Fired 33 | . . 33 Gun 33 | . . 33 Cannon . | . . . Launcher . | . . . Special . | . . . Kinetic 17 | . . 17 Thermal 16 | . . 16 Explosive . | . . . Electromagnetic . | . . . Robot Hit Streak 10 | . . 10 Robot Miss Streak 3 | . . 3 Penetration Max . | . . . Secondary Targets . | . . . Shots Hit Robots 27 | . . 27 Core Hits 8 | . . 8 Critical Hits . | . . . Critical Kills . | . . . Critical Parts Destroyed . | . . . Melee Attacks . | . . . Impact . | . . . Slashing . | . . . Piercing . | . . . Sneak Attacks . | . . . Combat Hostiles . | . . . Follow-up Attacks . | . . . Damage Inflicted 293 | . . 293 Guns 293 | . . 293 Cannons . | . . . Explosions . | . . . Melee . | . . . Ramming . | . . . Kinetic 153 | . . 153 Thermal 140 | . . 140 Explosive . | . . . Electromagnetic . | . . . Impact . | . . . Slashing . | . . . Piercing . | . . . Highest Corruption . | . . . Average Corruption . | . . . Corruption Purged . | . . . Overload Shots . | . . . Overflow Damage . | . . . Projectiles . | . . . Explosions . | . . . Melee . | . . . Knockbacks . | . . . Impact . | . . . Kinetic . | . . . Secondary . | . . . Self-Inflicted Damage . | . . . Shots . | . . . Rammed . | . . . Targets Rammed . | . . . Kicked . | . . . Crushed . | . . . Highest Temperature . | . . . Average Temperature . | . . . Received Heat Transfer 69 | . . 69 Siege Activations . | . . . Robots Corrupted . | . . . Combat Hostiles . | . . . Parts Fried . | . . . Impact Corruptions . | . . . Robots Melted . | . . . Combat Hostiles . | . . . Parts Melted . | . . . Heat Transferred 407 | . . 407 Parts Sabotaged . | . . . Parts Stolen . | . . . Parts Stripped . | . . . Power Chain Reactions . | . . . Missiles Intercepted . | . . . Alert | -11 -10 -9 ------- Run | Scr Mat Mat Peak Influence 130 | . . 130 Initial . | . . . Average 35 | . . 56 Maximum Alert Level . | . . . Low Security (%) 100 | 100 100 100 Level 1 . | . . . Level 2 . | . . . Level 3 . | . . . Level 4 . | . . . Level 5 . | . . . High Security . | . . . Max Security . | . . . Squads Dispatched 1 | . 1 . Investigation . | . . . Extermination . | . . . Reinforcement 1 | . 1 . Assault . | . . . Garrison . | . . . Intercept . | . . . Construction Impeded . | . . . Haulers Reinforced . | . . . Stealth | -11 -10 -9 --------- Run | Scr Mat Mat Distress Signals 3 | . 3 . Communications Jammed . | . . . Distress Signals . | . . . Times Spotted 9 | . . 9 Peak Tracking Total 4 | . . 4 Tactical Retreats . | . . . Traps | -11 -10 -9 ------- Run | Scr Mat Mat Traps Triggered . | . . . Indirectly . | . . . Trap Hack Attempts . | . . . Triggered . | . . . Disarmed . | . . . Reprogrammed . | . . . Reused . | . . . Traps Extracted . | . . . Installed . | . . . Triggered . | . . . Machines | -11 -10 -9 ---------- Run | Scr Mat Mat Machines Disabled . | . . . Max in Single Turn . | . . . Machines Sabotaged . | . . . Garrisons Compromised . | . . . Overloaded Fab Kills . | . . . Fab Network Shutdowns . | . . . Hacking | -11 -10 -9 --------- Run | Scr Mat Mat Machines Accessed 2 | . 1 1 Terminals 2 | . 1 1 Fabricators . | . . . Repair Stations . | . . . Recycling Units . | . . . Scanalyzers . | . . . Garrison Access . | . . . Total Hacks 5 | . 3 2 Successful 2 | . . 2 Failed 3 | . 3 . Catastrophic 1 | . 1 . Database Lockouts . | . . . Manual 1 | . . 1 Terminals 5 | . 3 2 Fabricators . | . . . Repair Stations . | . . . Recycling Units . | . . . Scanalyzers . | . . . Garrison Access . | . . . Terminal Hacks 2 | . . 2 Emergency Access Points 1 | . . 1 Locate Traps 1 | . . 1 Fabricator Hacks . | . . . Repair Station Hacks . | . . . Recycling Unit Hacks . | . . . Scanalyzer . | . . . Garrison Access Hacks . | . . . Unauthorized Hacks . | . . . Terminals . | . . . Fabricators . | . . . Repair Stations . | . . . Recycling Units . | . . . Scanalyzers . | . . . Garrison Access . | . . . Data Cores Recovered . | . . . Used . | . . . Hacking Detections 2 | . 1 1 Full Trace Events . | . . . Feedback Events . | . . . Feedback Blocked . | . . . Robot Schematics Acquired . | . . . Robots Built . | . . . Matter . | . . . Time . | . . . Total Robot Build Rating . | . . . Part Schematics Acquired . | . . . Parts Built . | . . . Matter . | . . . Time . | . . . Total Part Build Rating . | . . . Parts Repaired . | . . . Time . | . . . Parts Recycled . | . . . Recycled Matter . | . . . Retrieved Matter . | . . . Retrieved Components . | . . . Parts Scanalyzed . | . . . Part Schematics Acquired . | . . . Parts Damaged . | . . . Bothacking | -11 -10 -9 ------------ Run | Scr Mat Mat Used RIF Installer . | . . . Robots Hacked . | . . . Non-combat . | . . . Combat . | . . . Robot Hacks Applied . | . . . Relay Couplers Released . | . . . Robots Rewired . | . . . Allies Hacked . | . . . Hacks Repelled . | . . . Allies | -11 -10 -9 -------- Run | Scr Mat Mat Total Allies . | . . . Largest Group . | . . . Highest-Rated Group . | . . . Highest-Rated Ally . | . . . Total Orders . | . . . Ally Attacks . | . . . Total Damage . | . . . Kills . | . . . Allies Corrupted . | . . . Allies Melted . | . . . Intel | -11 -10 -9 ------- Run | Scr Mat Mat Robot Analysis Total . | . . . Derelict Logs Recovered . | . . . Drone Launches . | . . . Drone Recoveries . | . . . Exploration | -11 -10 -9 ------------- Run | Scr Mat Mat Turns Passed 524 | 77 122 325 Spaces Moved 378 | 57 99 222 Core 8 | 8 . . Treads . | . . . Legs 370 | 49 99 222 Wheels . | . . . Hover . | . . . Flight . | . . . Fastest Speed 50 | 50 120 120 Average Speed 118 | 110 120 120 Slowest Speed 120 | 120 120 120 Overloaded Moves . | . . . Propulsion Burnouts . | . . . Robots Hopped . | . . . Cave-ins Triggered . | . . . Exploration Rate (%) 13 | 4 19 18 Regions Visited 2 Branch Regions . Pre-discovered Areas . | . . . Known Exits Taken . | . . . Unknown Exits Taken 2 | 1 1 . Scrap Searched . | . . . Spaces Dug . | . . . Terrain Destroyed . | . . . Melee . | . . . Projectile . | . . . AOE . | . . . Terrain Rammed . | . . . Walls Destroyed . | . . . Machines Disabled . | . . . Actions | -11 -10 -9 --------- Run | Scr Mat Mat Total 417 | 68 101 248 Wait 4 | . . 4 Move 376 | 56 98 222 Hop . | . . . Pick Up 9 | 5 2 2 Fast Attach 7 | 5 1 1 Attach 1 | 1 . . Detach . | . . . Swap 1 | 1 . . Drop 2 | . . 2 Fire 17 | . . 17 Melee . | . . . Ram . | . . . Kick . | . . . Crush . | . . . Escape Stasis . | . . . Rewire . | . . . Trap . | . . . Miscellaneous . | . . . Route ------- -11/Scrapyard -10/Materials -9/Materials (discovered 1 exit: [*Min]) History --------- Turn | Location | Event 4 | -11/Scrapyard | Discovered new exit (range 16) 78 | -11/Scrapyard | Entered Materials 177 | -10/Materials | Discovered new exit (range 10) 200 | -10/Materials | Entered another Materials area 200 | -9/Materials | Evolved 2 slots: Utility x2 309 | -9/Materials | Build established: Mutant 373 | -9/Materials | Discovered new exit (range 13) 525 | -9/Materials | Self-destructed Last Messages --------------- 00332_ U-05 Engineer lays Concrete. 00334_ G-34 Mercenary destroyed. 00335_ U-05 Engineer lays Concrete. 00337_ Y-45 Defender destroyed. 00345_ R-06 Scavenger collects Lgt. Treads. 00346_ L-31 Rogue destroyed. 00347_ R-06 Scavenger collects Beam Rifle. 00348_ K-01 Serf collects debris. 00349_ Acquired 47 matter. 00350_ R-06 Scavenger collects Lgt. Armor Plating. 00350_ R-06 Scavenger collects Heat Sink. 00351_ Acquired 45 matter. 00351_ K-01 Serf collects debris. 00356_ R-06 Scavenger collects Aluminum Leg. 00359_ K-01 Serf collects debris. 00373_ EXIT=FOUND 00376_ K-01 Serf collects debris. 00476_ U-05 Engineer lays Concrete. 00482_ K-01 Serf collects debris. 00519_ G-34 Mercenary destroyed. Map ----- +----------------------------------------------------+ | ????????????????# #???????????????? | | ????????????????# #???????????????? | | ###?????????????# #???????????????? | | !!#?????????????# #???????????????? | | !!#?????????????# #???????????????? | | #?????????????# #???????????????? | | #?????????????# #???????????????? | | #??????????????########+########???????????????? | | #################### #???????????????????? | | #???????????????????? | | ############# #######?????????????? | | #???????????# T ????????????? | | ###???????????# ########????????????? | | ??????????????# #???????????????????? | | ??????????????#### ### #???????????????????? | | ???????????????? ?### ###???????????????????? | | ??????????????# #??# r#?????????????????????? | | ??????????????# #??# #?????????????????????? | | ??????????????# ? #??# k #########?????????????? | | ??????????????# ? #?## ## #?????????????? | | ??????????????# #?# # """ #?????????????? | | ??????????????# #?# # "R" +?????????????? | | ??????????????# ?#?# + " " #?????????????? | | ??????????????# ?#?# # #?????????????? | | ??????????????# #?# % # #?????????????? | | ??????????????? ###??###@###+######?????????????? | | ????????????????????????#%#?# #??????????????????? | | ???????????????????????##%###?#??????????????????? | | ???????????????????????#!== +??????????????????? | | ???????????????????????# #??????????????????? | | ???????????????????????# ##+#########??????????? | | ???????????????????????# ## #??????????? | | ??????????????????????## % ## #??????????? | | ??????????????????????# a # #??????????? | | ??????????????????????# # #??????????? | | ??????????????????????# + #??????????? | | ??????????????????????# # #??????????? | | ??????????????????????# # #??????????? | | ??????????????????????## ## #??????????? | | ???????????????????????#ss ############??????????? | | ?????????????????????? #?????????????????????? | | ?????????????????????### #?????????????????????? | | ???????????????????????# #?????????????????????? | | ???????????????????????" ?????????????????????? | | ?????????????????????? ?????????????????????? | | ??????????????????????! ?????????????????????? | | ?????????????????????"" < ?????????????????????? | | ??????????????????????! ?????????????????????? | | ?????????????????????? ?????????????????????? | | ?????????????????????""" ?????????????????????? | +----------------------------------------------------+ Best States ------------- Heat Dissipation 42 Energy Generation 10 Energy Capacity 250 Matter Stores 300 Matter Capacity 300 Sight Range 16 Robot Scan Range 10 Terrain Scan Density 10 Evasion (%) 40 Item Schematics ----------------- None Robot Schematics ------------------ None Fabricated ------------ Nothing Alien Tech Used ----------------- None Achievements -------------- None Challenges ------------ None Game ------ Seed AutogunLegNukerbomber Manual? 0 Play Time 00:09:34 Cumulative 171.0 hours Start 2021.04.03 @ 15:17:50 End 2021.05.27 @ 11:05:01 Sessions 5 Manual Loads 0 Difficulty Rogue Special Mode None Game No. 117 Rogue 85 Adventurer 0 Explorer 32 Win Type - Total 4 Types 4/0/0/0/0/0/0/0/0 Lore% 61 Gallery% 67 Achievement% 58 Wizard Run 0 Options --------- ASCII 1 Keyboard 1 Movement Vi Keybinds 0 Fullscreen 0 Font 12/Smallcaps Map View 76x50 Tactical HUD 1 Map Filters NONE Filters LOW_CONTRAST(47,30,31) Steam X RUN: d1df4fe1-6c58-4725-be7c-6abc26a81173